{"text_format":"1","workbook":"xlsx","n_sheets":1,"sheets":["0117461"],"not_rendered":{"charts":0,"images":0,"macros":0,"external_links":0,"defined_names":0,"comments":0,"pivot_tables":0},"unopened":[],"bounds":{"document_bytes":16777216,"sheet_cells":100000,"rows_first":2000,"rows_last":500,"rows_between":2000,"halvings":0,"cell_chars":16384,"cell_head_chars":4096},"cells_cut":0,"cells_raw":0,"read":"whole","date_system":"1900"}

{"sheet":"0117461","index":0,"n_rows":88,"n_cols":7,"rows_kept":88,"cut":false,"hidden":false,"merged":[[19,1,19,6],[38,0,38,1],[21,1,21,6],[22,1,22,6],[23,1,23,6],[24,1,24,6],[31,0,31,1],[33,1,33,6],[20,1,20,6],[16,1,16,6],[7,0,7,6],[8,0,8,6],[10,0,10,2],[15,1,15,6],[0,5,2,6],[6,4,6,6],[4,4,4,6],[5,4,5,6],[18,1,18,6],[17,1,17,6],[85,5,85,6],[39,1,39,6],[80,0,80,2],[81,5,81,6],[82,0,82,1],[84,0,84,2],[84,5,84,6],[83,0,83,1],[9,14,9,15],[12,8,12,10],[10,3,10,4],[12,3,12,4],[9,11,9,12],[9,3,9,4],[10,11,10,12],[10,14,10,15],[10,8,10,10],[14,12,14,14],[14,4,14,5],[11,3,11,4],[12,0,12,2],[13,4,13,5],[14,10,14,11],[13,10,13,12],[12,14,12,15],[13,13,13,14],[12,11,12,12]]}
[null,null,null,null,null,"ЗАТВЕРДЖЕНО\nНаказ Міністерства фінансів України \n26 серпня 2014 року № 836\n(у редакції наказу Міністерства фінансів України від  29 грудня 2018 року № 1209)"]
[]
[]
[null,null,null,null,"ЗАТВЕРДЖЕНО"]
[null,null,null,null,"Дунаєвецька міська рада "]
[null,null,null,null,"найменування головного розпорядника коштів місцевого бюджету"]
[null,null,null,null,"Розпорядження міського голови від 22.12.2020р. № 455/2020-р"]
["Паспорт"]
["бюджетної програми місцевого бюджету на 2020 рік"]
["1. ","0100000",null,"Дунаєвецька міська рада",null,null,"04060714"]
["(код Програмної класифікації видатків та кредитування місцевого бюджету)\n",null,null,"(найменування головного розпорядника коштів місцевого бюджету)",null,null,"(код за ЄДРПОУ)"]
["2. ","0110000",null,"Дунаєвецька міська рада",null,null,"04060714"]
["(код Програмної класифікації видатків та кредитування місцевого бюджету)",null,null,"(найменування відповідального виконавця)",null,null,"(код за ЄДРПОУ)"]
["3. ","0117461",7461,"0456"," Утримання та розвиток автомобільних доріг та дорожньої інфраструктури за рахунок коштів місцевого бюджету",null,6821810100]
[null,"(код Програмної класифікації видатків та кредитування місцевого бюджету)","(код Типової програмної класифікації видатків та кредитування місцевого бюджету)","(код Функціональної класифікації видатків та кредитування бюджету)","(найменування бюджетної програми згідно з Типовою програмною класифікацією видатків та кредитування місцевого бюджету)\n",null,"(код бюджету)"]
["4.","Обсяг бюджетних призначень / бюджетних асигнувань -5967344 гривень, у тому числі загального фонду - 5940344 гривень та спеціального фонду -27000 гривень."]
["5.","Підстави для виконання бюджетної програми: Бюджетний кодекс України, Закон України\"Про місцеве самоврядування в Україні\", Закон України \"Про Державний бюджет України на 2020 рік\" №294-ІХ, від 14.11.2019р., рішення сесії міської ради \"Про міський бюджет на 2020рік\" №5-63/2019р. від 20.12.2019 року,із змінами станом на 10.12.2020 року "]
["6.","Цілі державної політики, на досягнення яких спрямована реалізація бюджетної програми"]
["N з/п","Ціль державної політики"]
[1,"Утримання  та розвиток автомобільних доріг та  дорожньої інфраструктури ОТГ"]
["7.","Мета бюджетної програми : Покращення стану інфраструктури автомобільних доріг "]
["8.","Завдання бюджетної програми"]
["N з/п","Завдання"]
[1,"Забезпечення  утримання в належному технічному стані об'єктів  дорожнього господарства"]
[2,"Проведення поточного ремонту об'єктів транспортної інфраструктури"]
["9.","Напрями використання бюджетних коштів"]
[null,null,null,null,"гривень"]
["N з/п","Напрями використання бюджетних коштів","Загальний фонд","Спеціальний фонд","Усього"]
[1,2,3,4,5]
[null,"Забезпечення  утримання об\"єктів транспортної інфраструктури",811274,27000,{"$f":"C30+D30","v":838274}]
[null,"Забезпечення утримання в належному стані об\"єктів  дорожнього господарства",5129070,null,{"$f":"C31","v":5129070}]
["Усього",null,{"$f":"C30+C31","v":5940344},27000,{"$f":"C32+D32","v":5967344}]
[]
["10.","Перелік місцевих / регіональних програм, що виконуються у складі бюджетної програми:"]
[null,null,null,null,"гривень"]
["N з/п","Найменування місцевої / регіональної програми","Загальний фонд","Спеціальний фонд","Усього"]
[1,2,3,4,5]
[null,"Програма реформування і розвиток житлово-комунального господарства Дунаєвецької міської ради на 2017-2020 роки",5940344,27000,5967344]
["Усього",null,5940344,27000,5967344]
["11.","Результативні показники бюджетної програми:"]
["N з/п","Показник","Одиниця виміру","Джерело інформації","Загальний фонд","Спеціальний фонд","Усього"]
[1,2,3,4,5,6,7]
[1,"  Забезпечення утримання об'єктів  транспортної                      інфраструктури"]
[null,"                                                Затрат"]
[1,"кількість солі , що необхідно придбати для виготовлення посипкової суміші ","т","розрахунково",16,null,{"$f":"E45","v":16}]
[2,"кількість вапнякової суміші , що необхідно придбати для виготовлення посипкової суміші ","т","розрахунково",250,null,{"$f":"E46","v":250}]
[3,"кількість будівельного відсіву, що необхідно придбати для виготовлення посипкової суміші ","т","розрахунково",760,null,760]
[4,"кількість дорожніх знаків, які необхідно придбати та встановити ","шт.","розрахунково",30,null,30]
[5,"протяжність вулиці на яку необхідно нанести дорожну розмітку ","км","розрахунково",3,null,3]
[6,"протяжність проїздної частини, яку потрібно очистити від снігу та льоду механізованим способом","км","розрахунково",398.58,null,398.58]
[7,"кількість піску, що необхідно придбати для виготовлення посипкової сумішів кількості ","т","розрахунково",187.5,null,187.5]
[8,"кількість послуг з проведення топографо-геодезичної зйомки, що необхідно провести вул.Шевченка в м.Дунаївці","шт.","розрахунково",null,1,1]
[null,"                                              Продукту"]
[1,"кількість солі , що планують  придбати для виготовлення посипкової суміші","т","розрахунково",16,null,16]
[2,"кількість вапнякової суміші , що планують  придбати для виготовлення посипкової суміші","т","розрахунково",1500,null,1500]
[3,"кількість будівельного відсіву, що планують придбати для виготовлення посипкової суміші","т","розрахунково",570.5,null,570.5]
[4,"кількість дорожніх знаків, які планують придбати та встановити ","шт.","розрахунково",30,null,30]
[5,"протяжність вулиці, на яку планують нанести дорожну розмітку","км","розрахунково",3,null,3]
[6,"протяжність проїзної частини, яку планують очистити від снігу та льоду механізованим способом","км","розрахунково",398.58,null,398.58]
[7,"кількість піску, що планують  придбати для виготовлення посипкової суміші","т","розрахунково",187.5,null,187.5]
[8,"кількість послуг з проведення топографо-геодезичної зйомки, що планують провести вул.Шевченка в м.Дунаївці","шт.","розрахунково",null,1,1]
[null,"                                            Ефективності"]
[1,"середня вартість 1 тонни солі для виготовлення посипкової суміші","грн.","розрахунково",2600,null,2600]
[2,"середня вартість 1 тонни вапнякової суміші ","грн.","розрахунково",36,null,36]
[3,"середня вартість 1 тонни будівельного відсіву для виготовлення посипкової суміші","грн.","розрахунково",239.6,null,239.6]
[4,"середня вартість послуги з придбання та встановлення 1 дорожнього знаку ","грн.","розрахунково",1810,null,1810]
[5,"середня вартість 1 км нанесення дорожньої розмітки ","грн.","розрахунково",13233,null,13233]
[6,"середні витрати на очищення 1 км проїзної частини від снігу  та льоду механізованим способом","грн.","розрахунково",1121.73,null,1121.73]
[7,"середня вартість 1 тонни піску  для виготовлення посипкової суміші","грн.","розрахунково",200,null,200]
[8,"вартість послуги з проведення топографо-геодезичної зйомки вул.Шевченка в м.Дунаївці","тис.грн.","розрахунково",null,27,27]
[null,"Забезпечення утримання в належному  стані об\"єктів  дорожнього господарства"]
[null,"                                                 Затрат"]
[null,"площа автомобільних доріг населених пунктів громади, які потребують поточного ремонту","кв/м","розрахунково",51000,null,51000]
[null,"                                                Продукту"]
[null,"площа автомобільних доріг населених пунктів громади, де планують  поточний  ремонт","кв/м","розрахунково",51000,null,51000]
[null,"                                           Ефективності"]
[null,"середня вартість 1 кв/м  поточного ремонту вулично-дорожньої мережі населених пунктів громади","грн.","розрахунково",100.57,null,100.57]
[]
[]
[]
["Міський  голова",null,null,null,null,"Заяць В.В."]
[null,null,null,"(підпис)",null,"(ініціали/ініціал, прізвище)"]
["ПОГОДЖЕНО:"]
["Фінансове управління Дунаєвецької міської ради"]
["Начальник фінансового управління",null,null,null,null,"Абзалова Т.В."]
[null,null,null,"(підпис)",null,"(ініціали/ініціал, прізвище)"]
["Дата погодження"]
["М. П."]